bitfinex-derivatives/quotes_ETHF0:USTF0_20250604
["timestamp","ask_amount","ask_price","bid_price","bid_amount"]
[1749049515322,0.76349225,2637.9,2637.8,40.8]
[1749049515528,0.75784,2637.8,2637.7,3.2078]
[1749049515821,0.76351225,2637.9,2637.8,0.75784]
[1749049516517,0.76351225,2637.9,2637.4,0.76362225]
[1749049516518,0.75793,2637.5,2637.4,0.76362225]
[1749049516717,0.75793,2637.5,2637.4,0.00568225]
[1749049517418,0.75793,2637.5,2637.4,0.76364225]
[1749049517820,0.75793,2637.5,2637.4,0.00568225]
[1749049518128,1.65583,2637.5,2637.4,0.00568225]
[1749049518613,0.8979,2637.5,2637.4,0.76364225]
[1749049519628,1.65583,2637.5,2637.4,0.00568225]
[1749049519827,2.91103,2637.5,2637.4,0.00568225]
[1749049520929,6.11883,2637.5,2637.4,0.00568225]
[1749049522426,6.11883,2637.5,2636.7,3.2078]
[1749049522427,11.11883,2637.5,2636.7,3.2078]
[1749049522619,3.2078,2637.2,2636.4,3.2078]
[1749049522821,0.75821,2636.5,2636.4,3.96604]
[1749049523021,0.7583,2636.2,2636.1,3.2078]
[1749049523323,4.02147,2636.4,2635.8,4.077]
[1749049523628,0.75835,2636.1,2635.8,6.1442]
[1749049523831,4.02714225,2636.4,2635.8,0.8692]
[1749049524131,1.68639,2636.3,2636.0,0.75834]
[1749049524321,6.0131,2636.3,2635.6,1.62076]
[1749049524523,3.2078,2636.1,2635.4,4.1308]
[1749049524737,1.89597,2635.9,2635.4,4.1308]
[1749049524935,0.75849,2635.6,2635.4,4.1308]
[1749049526326,1.3012,2635.8,2635.4,4.1308]
[1749049526527,8.2928,2636.1,2635.4,3.2078]
[1749049526736,1.2871,2636.0,2635.4,3.96632]
[1749049526929,0.75845,2635.7,2635.4,3.96632]
[1749049527237,0.75844,2635.7,2635.4,3.96632]
[1749049527425,0.75844,2635.7,2635.5,0.7585]
[1749049527735,0.7584,2635.9,2635.4,3.2078]
[1749049527929,2.04547,2636.0,2635.4,3.2078]
[1749049528136,5.84435,2636.1,2635.8,0.75839]
[1749049528328,0.75836,2636.0,2635.7,3.96622]
[1749049528731,5.086,2636.1,2635.8,0.75839]
[1749049528929,5.84434,2636.1,2635.8,0.75839]
[1749049529131,1.2871,2636.0,2635.8,0.75839]
[1749049529533,2.04546,2636.0,2635.8,0.75839]
[1749049529831,0.75842,2635.8,2635.7,3.2078]
[1749049530033,0.75847,2635.7,2635.4,3.96631]
[1749049530232,1.2871,2636.0,2635.5,0.75849]
[1749049530629,6.3731,2636.0,2635.8,0.75839]
[1749049530834,0.75839,2635.9,2635.7,3.96622]
[1749049531233,7.13147,2636.0,2635.7,3.96622]
[1749049531431,5.84437,2636.0,2635.8,0.7584]
[1749049531638,0.9281,2636.3,2635.7,3.2078]
[1749049531836,0.75833,2636.1,2635.8,0.7584]
[1749049532137,0.86928225,2636.4,2636.2,0.75828]
[1749049532334,1.62752225,2636.4,2636.2,0.75828]
[1749049532835,0.00568225,2636.4,2636.3,0.75827]
[1749049533535,0.00568225,2636.4,2636.3,2.04667]
[1749049538338,0.76392225,2636.4,2636.3,2.04667]
[1749049538941,0.00568225,2636.4,2636.3,2.04667]
[1749049540038,0.00568225,2636.4,2636.3,0.75827]
[1749049541335,0.00568225,2636.4,2636.3,2.03107]
[1749049542436,2.1495,2637.0,2636.3,2.03107]
[1749049542437,0.8884,2637.0,2636.9,0.75809]
[1749049542641,0.9225,2637.2,2637.1,0.75804]
[1749049543035,1.68051,2637.2,2637.1,0.75804]
[1749049543236,0.9225,2637.2,2637.1,0.75804]
[1749049543641,0.9225,2637.2,2637.0,0.8953]
[1749049543836,0.9225,2637.2,2637.1,0.75804]
[1749049546035,2.1174,2637.2,2637.1,0.75804]
[1749049547242,0.9225,2637.2,2637.1,0.75804]
[1749049547537,0.8704,2637.3,2637.0,0.8953]
[1749049547737,0.8704,2637.3,2637.2,0.75801]
[1749049548841,0.75806,2637.0,2636.9,0.00568225]
[1749049549035,0.75826,2636.4,2636.2,3.2078]
[1749049549241,0.75825,2636.4,2636.3,0.75827]
[1749049549440,0.909,2636.5,2636.2,3.2078]
[1749049549635,0.75824,2636.4,2636.2,3.96608]
[1749049549946,0.909,2636.5,2636.4,0.75824]
[1749049550751,1.66721,2636.5,2636.4,0.75824]
[1749049550949,0.909,2636.5,2636.4,0.75824]
[1749049551148,0.86,2636.9,2636.3,1.89568]
[1749049551446,0.75818,2636.7,2636.6,0.75817]
[1749049552246,3.0653,2636.9,2636.8,0.75812]
[1749049552448,0.00568225,2637.4,2637.3,0.75798]
[1749049552449,0.76365225,2637.4,2637.3,0.75798]
[1749049552746,1.62365225,2637.4,2637.3,0.75798]
[1749049552948,0.75798,2637.3,2637.2,0.75799]
[1749049553538,2.06268,2637.3,2637.2,0.75799]
[1749049553743,1.3047,2637.3,2637.0,3.2078]
[1749049553944,2.0627,2637.3,2637.2,0.75801]
[1749049555851,1.3047,2637.3,2637.0,3.96586]
[1749049556055,0.75801,2637.2,2637.0,3.2078]
[1749049556255,0.75801,2637.2,2637.1,0.75804]
[1749049556851,2.0627,2637.3,2637.2,0.75801]
[1749049557053,0.75801,2637.2,2637.1,0.75802]
[1749049557252,1.2817,2637.2,2637.1,0.75802]
[1749049557956,2.03971,2637.2,2637.1,0.75802]
[1749049558455,2.03973,2637.2,2637.1,0.75804]
[1749049558663,5.94168225,2637.4,2637.3,0.75798]
[1749049558855,1.62363225,2637.4,2637.3,0.75798]
[1749049559152,0.00568225,2637.4,2637.3,0.75798]
[1749049559354,0.00568225,2637.4,2637.3,3.96578]
[1749049561545,3.0114,2638.0,2637.9,0.75781]
[1749049561750,1.7297,2638.0,2637.9,0.75781]
[1749049561951,2.48748,2638.0,2637.9,0.75781]
[1749049562156,0.75784,2637.8,2637.7,3.2078]
[1749049562552,0.75784,2637.8,2637.7,3.96567]
[1749049562862,0.75784,2637.8,2637.7,3.2078]
[1749049563657,0.75793,2637.5,2637.4,3.2078]
[1749049564052,1.3131,2637.6,2637.5,0.75792]
[1749049564255,0.75788,2637.7,2637.6,0.75789]
[1749049564762,0.75789,2637.7,2637.4,3.2078]
[1749049564951,0.75789,2637.7,2637.6,0.7579]
[1749049565151,0.75789,2637.7,2637.5,0.75791]
[1749049565352,0.75792,2637.6,2637.4,3.96573]
[1749049565554,3.20768,2637.9,2637.5,0.75792]
[1749049565857,0.75793,2637.5,2637.4,3.2078]
[1749049566057,0.75793,2637.5,2637.4,3.96575]
[1749049566258,2.02312,2637.6,2637.4,3.2078]
[1749049566461,2.02312,2637.6,2637.4,3.96573]
[1749049566760,0.8859,2637.5,2637.4,3.96573]
[1749049566963,2.1511,2637.5,2637.4,3.96573]
[1749049567359,2.90902,2637.5,2637.4,3.96573]
[1749049567560,2.1511,2637.5,2637.4,3.96573]
[1749049567758,0.8859,2637.5,2637.4,3.96573]
[1749049568458,6.36755,2637.9,2637.5,0.75791]
[1749049568763,0.8859,2637.8,2637.4,3.96573]
[1749049568957,0.75792,2637.5,2637.4,3.96573]
[1749049569560,1.2652,2637.7,2637.4,3.96573]
[1749049569561,0.75791,2637.6,2637.5,0.75792]
[1749049570060,1.2652,2637.7,2637.4,3.2078]
[1749049570260,0.8859,2637.8,2637.7,0.75787]
[1749049570450,0.8859,2637.8,2637.5,0.9174]
[1749049570650,0.7579,2637.6,2637.5,0.75792]
[1749049570854,1.99559,2637.7,2637.6,0.7579]
[1749049571562,0.8859,2637.8,2637.7,0.75787]
[1749049572358,0.89398225,2638.0,2637.9,0.75781]
[1749049572955,0.00568225,2638.0,2637.9,0.75781]
[1749049573256,0.8567,2638.5,2638.4,0.75767]
[1749049573571,5.9207,2638.5,2638.4,0.75767]
[1749049573866,0.8567,2638.5,2638.4,0.75767]
[1749049574067,2.1611,2638.7,2638.6,0.75761]
[1749049574463,2.1611,2638.7,2638.3,5.10203]
[1749049574658,2.1611,2638.7,2638.6,0.75761]
[1749049574659,0.8433,2638.7,2638.6,0.75761]
[1749049574963,5.82157,2638.8,2638.3,6.39003]
[1749049574964,0.75756,2638.8,2638.3,6.39003]
[1749049575267,0.00568225,2638.9,2638.8,0.75755]
[1749049578967,0.00568225,2638.9,2638.7,1.64228]
[1749049579170,0.76322225,2638.9,2638.8,0.75755]
[1749049579471,0.75755,2638.8,2638.7,1.64227]
[1749049579667,0.00568225,2638.9,2638.7,0.8847]
[1749049579969,1.21438225,2638.9,2638.8,0.75755]
[1749049580164,1.97190225,2638.9,2638.8,0.75755]
[1749049580364,0.00568225,2638.9,2638.8,0.75755]
[1749049584265,0.00568225,2638.9,2638.8,2.02905]
[1749049587765,0.75758,2638.7,2638.6,3.21348225]
[1749049588172,0.75758,2638.7,2638.6,3.97109225]
[1749049588768,1.66187,2638.8,2638.7,0.75758]
[1749049589073,0.9043,2638.8,2638.7,0.75758]
[1749049589575,0.76322225,2638.9,2638.6,3.21348225]
[1749049589576,0.00568225,2638.9,2638.8,0.75755]
[1749049593667,0.9228,2639.4,2639.3,0.75741]
[1749049593971,0.75735,2639.5,2639.4,0.75735]
[1749049594169,0.8687,2639.6,2639.5,0.75735]
[1749049594579,1.62602,2639.6,2639.5,0.75735]
[1749049594772,0.8687,2639.6,2639.5,0.75735]
[1749049595472,0.00568225,2639.8,2639.7,0.75729]
[1749049596373,0.00568225,2639.8,2639.7,3.96509]
[1749049597577,0.76295225,2639.8,2639.7,3.2078]
[1749049597771,0.76295225,2639.8,2639.7,3.96509]
[1749049597970,0.00568225,2639.8,2639.7,3.96509]
[1749049600479,0.76295225,2639.8,2639.7,3.2078]
[1749049600679,0.76295225,2639.8,2639.7,3.96509]
[1749049601471,0.00568225,2639.8,2639.7,3.96509]
[1749049602081,1.766,2640.4,2639.7,13.2678]
[1749049602274,1.766,2640.4,2640.3,0.75712]
[1749049602475,0.757,2640.8,2640.6,0.75701]
[1749049602674,0.757,2640.8,2640.6,0.75702]
[1749049603383,0.757,2640.8,2640.7,0.75701]
[1749049603780,0.75697,2640.9,2640.7,0.75701]
[1749049604381,1.32468225,2641.0,2640.9,0.75695]
[1749049604783,0.00568225,2641.0,2640.9,3.96475]
[1749049605178,2.193,2641.5,2641.4,0.75681]
[1749049605475,0.874,2641.5,2641.4,0.75681]
[1749049605684,0.8889,2641.6,2641.5,0.75678]
[1749049606377,0.8889,2641.6,2641.2,3.2078]
[1749049606583,0.75684,2641.3,2641.2,3.2078]
[1749049606776,0.75681,2641.4,2641.2,3.96467]
[1749049606978,1.2738,2641.3,2641.2,3.96467]
[1749049607786,0.8889,2641.6,2641.5,0.75678]
[1749049608588,1.64566,2641.6,2641.4,0.75679]
[1749049608883,1.64567,2641.6,2641.5,0.75678]
[1749049609089,0.8889,2641.6,2641.5,0.75678]
[1749049609387,0.00568225,2641.8,2641.2,5.09994]
[1749049609587,0.87758225,2641.8,2641.2,3.2078]
[1749049609788,0.75679,2641.5,2641.2,3.2078]
[1749049610088,0.75677,2641.6,2641.5,0.75678]
[1749049610290,2.04554,2641.7,2641.5,0.75678]
[1749049610585,0.87758225,2641.8,2641.7,0.75672]
[1749049610789,0.00568225,2641.8,2641.7,0.75672]
[1749049610980,0.00568225,2641.8,2641.7,1.63652]
[1749049611184,0.00568225,2641.8,2641.7,2.95802]
[1749049611375,0.00568225,2641.8,2641.7,1.63652]
[1749049611786,0.00568225,2641.8,2641.7,1.62947285]
[1749049612490,0.00568225,2641.8,2641.7,7.87027285]
[1749049612695,1.7747,2642.3,2642.2,0.75658]
[1749049612986,3.0539,2643.0,2642.4,1.89131]
[1749049613182,0.75638,2642.9,2642.8,3.2078]
[1749049613384,3.0539,2643.0,2642.8,3.2078]
[1749049613579,1.7335,2643.0,2642.9,0.75638]
[1749049613787,0.8602,2643.0,2642.9,0.75638]
[1749049614183,0.00378816,2643.2,2643.1,0.75632]
[1749049614391,0.00378816,2643.2,2643.1,3.96412]
[1749049615388,4.94424,2643.8,2643.1,3.96412]
[1749049615389,0.75624,2643.4,2643.1,3.2078]
[1749049615590,0.75629,2643.2,2643.1,3.2078]
[1749049615786,0.75627,2643.3,2643.1,3.2078]
[1749049615984,0.75625,2643.4,2643.1,3.2078]
[1749049616294,1.2058,2643.6,2643.4,0.75623]
[1749049616479,3.2078,2643.8,2643.1,3.2078]
[1749049616685,0.8491,2644.2,2643.7,0.75613]
[1749049616978,1.96185,2644.1,2643.8,3.2078]
[1749049617186,0.8491,2644.2,2643.8,3.2078]
[1749049617386,0.8491,2644.2,2644.0,0.75605]
[1749049617785,0.8491,2644.2,2643.8,3.2078]
[1749049617786,1.60511,2644.2,2643.8,3.2078]
[1749049617991,0.8491,2644.2,2644.0,0.75606]
[1749049618192,0.8491,2644.2,2643.9,0.75608]
[1749049618391,2.0514,2644.2,2643.8,3.2078]
[1749049618590,0.75609,2643.9,2643.7,0.00568225]
[1749049618892,0.75612,2643.8,2643.7,0.00568225]
[1749049619192,1.2023,2643.8,2643.7,0.00568225]
[1749049619589,0.75611,2643.9,2643.7,0.76182225]
[1749049619786,3.96388,2644.0,2643.8,0.75612]
[1749049620088,1.2023,2644.1,2643.7,0.00568225]
[1749049620089,0.75609,2643.9,2643.7,0.00568225]
[1749049620396,0.75611,2643.9,2643.7,0.00568225]
[1749049620587,0.75612,2643.8,2643.7,0.00568225]
[1749049620784,0.75611,2643.9,2643.7,0.00568225]
[1749049620986,4.4101,2644.1,2643.7,0.00568225]
[1749049621293,0.75612,2643.8,2643.7,0.00568225]
[1749049621798,4.4101,2644.1,2643.7,0.00568225]
[1749049621984,0.75612,2643.8,2643.7,0.00568225]
[1749049622991,4.4101,2644.1,2643.7,0.00568225]
[1749049623291,1.2023,2644.1,2643.7,0.00568225]
[1749049623490,0.75612,2643.8,2643.7,0.00568225]
[1749049623690,5.79712,2643.8,2643.7,0.00568225]
[1749049624795,2.0366,2643.9,2643.7,0.76181225]
[1749049624988,2.0366,2643.9,2643.7,0.00568225]
[1749049625289,1.2805,2643.9,2643.8,0.75612]
[1749049625490,1.2805,2643.9,2643.7,0.00568225]
[1749049625791,1.2805,2643.9,2643.8,0.75612]
[1749049626392,0.8491,2644.2,2644.1,0.75604]
[1749049626589,5.8891,2644.2,2644.1,0.75604]
[1749049626988,7.1312,2644.2,2644.1,0.47233215]
[1749049627586,2.0912,2644.2,2644.1,0.75604]
[1749049627893,2.0912,2644.2,2644.1,0.38722453]
[1749049628083,0.8491,2644.2,2644.1,0.38722453]
[1749049628291,3.2078,2644.6,2643.9,5.09803]
[1749049628292,1.2089,2644.8,2644.7,0.75587]
[1749049628485,3.2078,2645.0,2644.9,0.75581]
[1749049628687,2.04318629,2645.7,2644.6,3.2078]
[1749049628688,1.88932,2645.2,2644.6,3.2078]
[1749049628895,2.0856,2644.9,2644.3,3.2078]
[1749049629189,0.75612,2643.8,2643.5,8.2468]
[1749049629391,1.88989,2644.4,2643.5,8.2468]
[1749049629392,0.75609,2644.0,2643.7,0.76182225]
[1749049629588,4.4167,2644.3,2643.9,0.75608]
[1749049629788,0.75605,2644.1,2643.9,0.75608]
[1749049629987,0.8767,2644.2,2643.9,0.75608]
[1749049629988,1.2089,2644.0,2643.9,0.75608]
[1749049630690,5.9157,2644.2,2644.1,0.75604]
[1749049630892,2.0863,2644.2,2643.8,3.2078]
[1749049631092,0.75607,2644.0,2643.8,3.96391]
[1749049631290,0.7561,2643.9,2643.8,3.2078]
[1749049631493,0.75606,2644.1,2643.9,0.75609]
[1749049631797,0.75606,2644.1,2643.7,0.00568225]
[1749049631798,1.2096,2644.1,2643.7,0.00568225]
[1749049631998,1.2096,2644.1,2644.0,0.75607]
[1749049632193,0.8767,2644.2,2644.1,0.75604]
[1749049632989,3.2078,2644.6,2644.5,0.75592]
[1749049632990,5.026,2644.6,2644.5,0.75592]
[1749049633192,0.75594,2644.5,2644.3,0.75597]
[1749049633391,0.75595,2644.4,2644.2,0.75599]
[1749049633597,1.99231,2644.3,2644.1,0.75602]
[1749049633802,5.78202,2644.2,2644.0,0.75605]
[1749049633998,1.2363,2644.1,2644.0,0.75607]
[1749049634198,2.0979,2644.1,2643.7,3.21348225]
[1749049634499,3.72394,2644.1,2644.0,0.75607]
[1749049634697,2.9679,2644.1,2644.0,0.75607]
[1749049634898,6.1757,2644.1,2643.7,0.00568225]
[1749049635099,6.1757,2644.1,2643.1,3.2078]
[1749049635100,0.7563,2643.2,2643.1,3.2078]
[1749049635296,0.7563,2643.2,2642.7,2.9457]
[1749049635297,0.75631,2643.2,2642.7,4.0772]
[1749049635492,2.0979,2643.1,2642.7,44.8772]
[1749049635696,2.85424,2643.1,2643.0,0.75635]
[1749049635898,2.0979,2643.1,2643.0,0.75635]
[1749049636091,2.85424,2643.1,2642.9,0.75638]
[1749049636294,2.85424,2643.1,2643.0,0.75635]
[1749049636501,2.0979,2643.1,2643.0,0.75635]
[1749049639107,0.8616,2643.1,2643.0,0.75635]
[1749049639807,0.00564537,2643.3,2643.2,0.7563]
[1749049640508,1.32994537,2643.3,2643.0,3.2078]
[1749049640711,0.75633,2643.1,2643.0,3.2078]
[1749049641004,0.75633,2643.1,2642.8,0.00567118]
[1749049641005,0.75638,2642.9,2642.8,0.00567118]
[1749049641204,5.78338,2642.9,2642.8,0.00567118]
[1749049641612,1.89114,2642.7,2642.3,0.75655]
[1749049641817,3.2078,2642.6,2641.9,5.09945]
[1749049642002,0.75654,2642.4,2641.9,5.09945]
[1749049642306,0.75654,2642.4,2642.1,0.75659]
[1749049642307,5.027,2642.4,2642.1,0.75659]
[1749049642511,0.75664,2642.0,2641.9,3.2078]
[1749049642702,0.75664,2642.0,2641.9,0.75667]
[1749049643109,0.75667,2641.9,2641.8,0.75668]
[1749049643305,1.1932,2641.9,2641.7,0.00567118]
[1749049643518,0.7567,2641.8,2641.7,0.00567118]
[1749049643905,0.7567,2641.8,2640.9,1.89236]
[1749049643906,0.75687,2641.2,2641.1,3.2078]
[1749049644213,0.75696,2640.9,2640.8,3.2078]
[1749049644414,0.75693,2641.0,2640.8,44.76476]
[1749049644612,1.1932,2641.1,2640.8,3.2078]
[1749049644919,1.1932,2640.9,2640.8,3.96479]
[1749049645110,0.00567118,2641.1,2641.0,0.75693]
[1749049645417,0.76257118,2641.1,2640.8,3.2078]
[1749049645608,1.23287118,2641.1,2640.8,3.2078]
[1749049646110,5.028,2641.0,2640.9,0.75695]
[1749049646311,0.75696,2640.9,2640.8,3.2078]
[1749049646719,1.98416,2640.9,2640.8,3.2078]
[1749049647714,0.75701,2640.7,2640.6,0.00567118]
[1749049648119,6.89259,2640.7,2639.9,3.2078]
[1749049648413,0.75709,2640.5,2640.3,0.75711]
[1749049648619,1.2471,2640.4,2639.9,3.2078]
[1749049648920,5.029,2640.3,2640.2,0.75715]
[1749049649419,1.2471,2640.4,2640.3,0.75713]
[1749049649622,3.2078,2640.9,2640.6,0.75702]
[1749049649807,0.757,2640.8,2640.6,3.2078]
[1749049650012,0.75697,2640.9,2640.6,3.2078]
[1749049650213,0.75697,2640.9,2640.7,0.75699]
[1749049650412,5.8816,2641.0,2640.3,44.0078]
[1749049650721,0.7571,2640.4,2640.3,3.2078]
[1749049651313,2.8868,2640.4,2640.3,3.2078]
[1749049652018,0.8826,2640.4,2640.3,3.96493]
[1749049652313,5.7871,2640.4,2640.3,3.2078]
[1749049652814,5.03,2640.4,2640.3,3.2078]
[1749049653021,5.7871,2640.4,2640.3,3.2078]
[1749049653218,0.7571,2640.4,2640.3,3.2078]
[1749049653419,5.03,2640.4,2640.3,3.96493]
[1749049653625,5.031,2640.5,2640.3,3.2078]
[1749049653818,5.031,2640.6,2640.3,3.2078]
[1749049654021,5.031,2640.6,2640.5,0.75707]
[1749049654523,0.8503,2640.9,2640.3,3.2078]
[1749049654723,5.031,2640.9,2640.8,0.75699]
[1749049655020,0.75694,2641.0,2640.9,0.75694]
[1749049655225,0.00567118,2641.1,2640.8,0.75696]
[1749049655421,0.75694,2641.0,2640.9,0.75694]
[1749049655628,5.78794,2641.0,2640.9,0.75694]
[1749049655923,0.757,2640.8,2640.7,0.757]
[1749049656120,0.757,2640.8,2640.6,3.2078]
[1749049656325,3.10914118,2641.1,2640.6,3.2078]
[1749049656526,0.75701,2640.8,2640.7,0.75701]
[1749049656722,0.75703,2640.7,2640.6,0.75702]
[1749049657027,0.75701,2640.8,2640.7,0.757]
[1749049658228,0.75701,2640.7,2640.6,3.96483]
[1749049658524,0.75701,2640.7,2640.3,3.9649]
[1749049658525,0.7571,2640.4,2640.3,3.9649]
[1749049658720,0.7571,2640.4,2640.3,3.2078]
[1749049659116,5.7881,2640.4,2640.3,3.96493]
[1749049659321,0.7571,2640.4,2640.3,3.58543]
[1749049659531,5.7881,2640.4,2640.3,3.58543]
[1749049660324,5.7881,2640.4,2640.3,2.8283]
[1749049660526,5.7881,2640.4,2640.3,3.58543]
[1749049660727,5.7881,2640.4,2640.3,2.8283]
[1749049661023,0.75709,2640.5,2640.4,0.75707]
[1749049661224,5.031,2640.5,2640.4,0.7571]
[1749049661428,5.031,2640.5,2640.3,3.58542]
[1749049661622,5.78809,2640.5,2640.4,0.7571]
[1749049661923,0.75706,2640.6,2640.5,0.75705]
[1749049662233,0.75706,2640.6,2640.5,0.75707]
[1749049662421,2.91198,2640.9,2640.8,0.75699]
[1749049662618,0.75696,2641.0,2640.9,0.75695]
[1749049662927,0.75696,2640.9,2640.8,0.75696]
[1749049663128,5.023,2640.9,2640.8,0.75696]
[1749049663823,0.75696,2640.9,2640.8,0.75696]
[1749049664029,0.00567118,2641.1,2640.7,3.2078]
[1749049664218,0.00567118,2641.1,2641.0,0.75693]
[1749049664531,0.00567118,2641.1,2641.0,3.96473]
[1749049665035,0.00567118,2641.1,2641.0,44.76473]
[1749049665330,5.023,2641.6,2641.3,1.8921]
[1749049665523,3.2078,2642.0,2641.9,0.75667]
[1749049665929,38.176,2642.1,2642.0,0.75664]
[1749049666127,0.75667,2641.9,2641.5,3.2078]
[1749049666323,38.176,2642.1,2642.0,0.75664]
[1749049666524,43.199,2642.1,2642.0,0.75664]
[1749049667335,5.77961,2642.2,2642.1,0.7566]
[1749049667535,0.75663,2642.1,2642.0,0.75663]
[1749049668329,5.023,2642.2,2642.1,0.75661]
[1749049668633,1.89161,2642.0,2641.4,0.85517118]
[1749049668828,0.75679,2641.5,2641.4,0.00567118]
[1749049669030,1.89204,2641.4,2640.7,3.2078]
[1749049669227,1.89204,2641.4,2640.4,0.9139]
[1749049669228,3.2078,2640.9,2640.4,0.9139]
[1749049669431,0.75705,2640.6,2640.5,41.55707]
[1749049669628,5.023,2640.8,2640.5,40.8]
[1749049669829,5.78,2640.8,2640.7,0.75701]
[1749049670232,5.023,2640.8,2640.7,0.75701]
[1749049670638,5.77999,2640.8,2640.7,0.75701]
[1749049671238,5.023,2640.8,2640.5,40.80567118]
[1749049671536,5.78001,2640.8,2640.5,40.80567118]
[1749049671741,5.77999,2640.8,2640.6,0.75702]
[1749049671934,0.75701,2640.7,2640.6,0.75702]
[1749049672332,5.77999,2640.8,2640.7,0.75701]
[1749049673241,0.75704,2640.7,2640.5,41.56273118]
[1749049673540,0.75704,2640.7,2640.6,0.75704]
[1749049674038,0.75704,2640.7,2640.5,40.80567118]
[1749049674242,0.75704,2640.7,2640.6,0.75704]
[1749049674426,0.75704,2640.6,2640.5,40.80567118]
[1749049674631,1.66704,2640.6,2640.5,40.80567118]
[1749049675539,0.91,2640.6,2640.5,41.56274118]
[1749049677234,1.66704,2640.6,2640.5,41.56274118]
[1749049677643,0.91,2640.6,2640.5,41.56274118]
[1749049677841,5.934,2640.6,2640.5,41.56274118]
[1749049678240,5.934,2640.6,2640.5,0.76274118]
[1749049678635,6.69104,2640.6,2640.5,0.00567118]
[1749049678841,6.69104,2640.6,2640.5,40.80567118]
[1749049679343,6.69104,2640.6,2640.5,0.00567118]
[1749049680143,9.89884,2640.6,2640.5,0.00567118]
[1749049680339,11.13914,2640.6,2640.5,0.00567118]
[1749049680531,0.75719,2640.1,2640.0,44.76501]
[1749049680937,5.024,2640.2,2640.1,0.75719]
[1749049681138,5.024,2640.2,2640.0,44.0078]
[1749049681331,5.78118,2640.2,2640.1,0.75719]
[1749049682038,5.024,2640.2,2640.0,44.0078]
[1749049682341,5.024,2640.2,2640.1,0.75719]
[1749049682742,5.024,2640.4,2640.3,0.75712]
[1749049682938,0.75719,2640.1,2640.0,3.2078]
[1749049683344,0.75719,2640.1,2640.0,3.96502]
[1749049683642,5.024,2640.2,2640.1,0.75719]
[1749049683832,5.024,2640.2,2640.0,44.76499]
[1749049684036,0.75719,2640.1,2640.0,44.76502]
[1749049684441,5.024,2640.2,2640.1,0.75719]
[1749049684639,1.2424,2640.4,2640.0,44.0078]
[1749049684835,5.78115,2640.3,2640.2,0.75715]
[1749049685647,0.75719,2640.1,2640.0,44.0078]
[1749049685946,0.75719,2640.1,2640.0,44.76502]
[1749049686147,0.75718,2640.2,2640.1,0.75717]
[1749049686342,0.75719,2640.1,2640.0,44.765]
[1749049686547,5.024,2640.2,2640.1,0.75719]
[1749049687140,0.75722,2640.0,2639.9,0.00567118]
[1749049688048,1.98892,2640.0,2639.9,0.00567118]
[1749049688544,20.24392,2640.0,2639.9,0.00567118]
[1749049691437,0.75722,2640.0,2639.9,0.00567118]
[1749049691738,5.025,2640.4,2640.1,1.89296]
[1749049691941,0.75719,2640.1,2640.0,3.2078]
[1749049692243,0.75722,2640.0,2639.9,0.00567118]
[1749049692453,1.89323,2639.8,2639.2,0.8544]
[1749049692740,27.34928,2640.0,2639.8,0.75727]
[1749049692741,5.8548,2639.9,2639.8,0.75727]
[1749049693242,6.61204,2639.9,2639.8,3.2078]
[1749049693446,6.61204,2639.9,2639.8,3.96507]
[1749049693447,5.8548,2639.9,2639.8,3.96507]
[1749049693637,5.018,2640.0,2639.9,0.75724]
[1749049694244,0.75718,2640.2,2640.1,0.75719]
[1749049694451,0.7572,2640.1,2640.0,0.75719]
[1749049694653,19.5475,2640.3,2640.2,0.75716]
[1749049694654,2.05064,2640.3,2640.2,0.75716]
[1749049694946,0.75719,2640.2,2640.1,0.75717]
[1749049695454,5.77514,2640.3,2640.2,0.75716]
[1749049695643,1.58691,2640.4,2640.3,0.75713]
[1749049695844,0.75719,2640.2,2640.1,0.75716]
[1749049696037,0.75714,2640.3,2640.2,0.75713]
[1749049697745,0.75717,2640.2,2640.1,0.75717]
[1749049698747,0.75718,2640.2,2640.1,0.75719]
[1749049698944,7.74061,2640.4,2639.9,1.2083]
[1749049699150,0.75718,2640.2,2640.1,0.75718]
[1749049699344,0.75715,2640.3,2640.2,0.75715]
[1749049699745,0.75716,2640.2,2640.1,3.96497]
[1749049699944,0.75716,2640.2,2640.1,3.2078]
[1749049700956,0.75719,2640.1,2640.0,0.7572]
[1749049701250,0.75724,2639.9,2639.8,3.96505]
[1749049701451,1.89314,2639.9,2639.6,0.00384243]
[1749049701653,0.7573,2639.7,2639.6,0.00384243]
[1749049701944,0.7573,2639.7,2639.6,0.76116243]
[1749049702354,0.7573,2639.7,2639.6,0.00384243]
[1749049702748,1.9978,2639.7,2639.6,0.00384243]
[1749049705552,4.0592,2639.8,2639.6,0.00384243]
[1749049705855,4.0592,2639.8,2639.7,0.7573]
[1749049705856,0.8514,2639.8,2639.7,0.7573]
[1749049706049,1.60867,2639.8,2639.7,0.7573]
[1749049706246,0.7573,2639.7,2639.6,0.00384243]
[1749049707352,2.1671,2639.8,2639.6,0.00384243]
[1749049707353,1.60869,2639.8,2639.6,0.00384243]
[1749049707551,6.62669,2639.8,2639.6,0.76115243]
[1749049707751,0.7573,2639.7,2639.6,0.76115243]
[1749049708657,0.7573,2639.7,2639.6,0.00384243]
[1749049709252,2.073,2639.7,2639.6,0.00384243]
[1749049709458,0.75742,2639.3,2639.2,3.2078]
[1749049709756,0.7576,2638.7,2638.6,0.7576]
[1749049709954,1.89376,2639.0,2638.6,41.5576]
[1749049710149,0.75759,2638.7,2638.6,41.5576]
[1749049710757,0.75759,2638.7,2638.6,40.8]
[1749049711847,0.75758,2638.8,2638.6,41.55762]